[Event "Titled Tuesday Blitz March 07 Late 2023"]
[White "Filgueira, Hernan"]
[Black "Beukes, Dante M"]
[WhiteFideId "101770"]
[BlackFideId "15200540"]
[WhiteElo "2363"]
[BlackElo "2199"]
[Result "1-0"]
[Round "07"]
[TimeControl "180+2"]
[Date "2023.03.07"]
[WhiteClock "0:00:19"]
[BlackClock "0:00:01"]

1. c4 {[%clk 0:02:59]}  Nf6 {[%clk 0:02:53]} 2. Nc3 {[%clk 0:02:58]}  g6 {[%clk 0:02:48]} 3. e4 {[%clk 0:02:57]}  e5 {[%clk 0:02:46]} 4. Nf3 {[%clk 0:02:53]}  Bg7 {[%clk 0:02:46]} 5. Nxe5 {[%clk 0:02:52]}  O-O {[%clk 0:02:46]} 6. Nf3 {[%clk 0:02:51]}  Re8 {[%clk 0:02:44]} 7. d3 {[%clk 0:02:51]}  c6 {[%clk 0:02:45]} 8. Be2 {[%clk 0:02:50]}  d5 {[%clk 0:02:45]} 9. cxd5 {[%clk 0:02:50]}  cxd5 {[%clk 0:02:45]} 10. e5 {[%clk 0:02:50]}  Ng4 {[%clk 0:01:57]} 11. d4 {[%clk 0:02:40]}  Nc6 {[%clk 0:01:57]} 12. O-O {[%clk 0:02:35]}  Nh6 {[%clk 0:01:54]} 13. Bxh6 {[%clk 0:02:33]}  Bxh6 {[%clk 0:01:54]} 14. h3 {[%clk 0:02:32]}  Be6 {[%clk 0:01:52]} 15. Nb5 {[%clk 0:02:25]}  f6 {[%clk 0:01:41]} 16. exf6 {[%clk 0:02:18]}  Qxf6 {[%clk 0:01:39]} 17. Nc7 {[%clk 0:02:17]}  Rac8 {[%clk 0:01:33]} 18. Nxe8 {[%clk 0:02:16]}  Rxe8 {[%clk 0:01:34]} 19. Bb5 {[%clk 0:02:06]}  Rf8 {[%clk 0:01:31]} 20. Re1 {[%clk 0:01:26]}  Bf5 {[%clk 0:01:27]} 21. Bxc6 {[%clk 0:01:21]}  bxc6 {[%clk 0:01:26]} 22. Qe2 {[%clk 0:01:17]}  Be4 {[%clk 0:01:25]} 23. Rad1 {[%clk 0:01:14]}  Qf4 {[%clk 0:00:56]} 24. Ne5 {[%clk 0:01:10]}  Qg5 {[%clk 0:00:47]} 25. Qg4 {[%clk 0:01:06]}  Qf6 {[%clk 0:00:40]} 26. Rf1 {[%clk 0:00:59]}  Bf5 {[%clk 0:00:39]} 27. Qe2 {[%clk 0:00:58]}  Qg5 {[%clk 0:00:34]} 28. f4 {[%clk 0:00:54]}  Qh4 {[%clk 0:00:26]} 29. Qf2 {[%clk 0:00:47]}  Qd8 {[%clk 0:00:16]} 30. Nxc6 {[%clk 0:00:43]}  Qd6 {[%clk 0:00:14]} 31. Ne5 {[%clk 0:00:43]}  Be4 {[%clk 0:00:14]} 32. Qh4 {[%clk 0:00:41]}  Bg7 {[%clk 0:00:11]} 33. Rf2 {[%clk 0:00:38]}  Rb8 {[%clk 0:00:07]} 34. b3 {[%clk 0:00:33]}  Bf6 {[%clk 0:00:07]} 35. Qg3 {[%clk 0:00:32]}  Bg7 {[%clk 0:00:05]} 36. Rc1 {[%clk 0:00:30]}  Rd8 {[%clk 0:00:04]} 37. Qc3 {[%clk 0:00:26]}  Rf8 {[%clk 0:00:02]} 38. Qc6 {[%clk 0:00:23]}  Qb4 {[%clk 0:00:02]} 39. Qc5 {[%clk 0:00:20]}  Qb7 {[%clk 0:00:01]} 40. Qc6 {[%clk 0:00:19]}  Qb4 {[%clk 0:00:01]} 41. Qe6+ {[%clk 0:00:19]} 1-0


[Site "https://www.chess.com"]

[Event "Titled Tuesday Blitz March 07 Late 2023"]
[White "Musovic, Armin"]
[Black "Chan, Kim Yew"]
[WhiteFideId "939935"]
[BlackFideId "5717981"]
[WhiteElo "2321"]
[BlackElo "2206"]
[Result "0-1"]
[Round "07"]
[TimeControl "180+2"]
[Date "2023.03.07"]
[WhiteClock "0:01:45"]
[BlackClock "0:00:40"]

1. a3 {[%clk 0:02:58]}  Nf6 {[%clk 0:02:56]} 2. Nc3 {[%clk 0:02:59]}  d5 {[%clk 0:02:54]} 3. d4 {[%clk 0:02:53]}  Bf5 {[%clk 0:02:54]} 4. Bg5 {[%clk 0:02:53]}  Nbd7 {[%clk 0:02:43]} 5. Bh4 {[%clk 0:02:52]}  e6 {[%clk 0:02:37]} 6. Nf3 {[%clk 0:02:51]}  Be7 {[%clk 0:02:37]} 7. e3 {[%clk 0:02:52]}  O-O {[%clk 0:02:36]} 8. Bd3 {[%clk 0:02:53]}  Bg6 {[%clk 0:02:32]} 9. O-O {[%clk 0:02:52]}  c5 {[%clk 0:02:20]} 10. Re1 {[%clk 0:02:50]}  Rc8 {[%clk 0:02:11]} 11. Bxg6 {[%clk 0:02:43]}  hxg6 {[%clk 0:02:11]} 12. Qd3 {[%clk 0:02:30]}  cxd4 {[%clk 0:01:42]} 13. exd4 {[%clk 0:02:26]}  Qb6 {[%clk 0:01:40]} 14. Ne5 {[%clk 0:02:11]}  Qd8 {[%clk 0:01:06]} 15. Re2 {[%clk 0:02:02]}  Nxe5 {[%clk 0:00:59]} 16. Rxe5 {[%clk 0:02:02]}  Nd7 {[%clk 0:00:56]} 17. Bxe7 {[%clk 0:02:00]}  Nxe5 {[%clk 0:00:56]} 18. dxe5 {[%clk 0:01:56]}  Qxe7 {[%clk 0:00:56]} 19. Kh1 {[%clk 0:01:55]}  Rc4 {[%clk 0:00:46]} 20. Nb5 {[%clk 0:01:55]}  Qc5 {[%clk 0:00:43]} 21. Nd6 {[%clk 0:01:52]}  Rxc2 {[%clk 0:00:41]} 22. g3 {[%clk 0:01:45]}  Qxf2 {[%clk 0:00:40]} 0-1


[Site "https://www.chess.com"]

[Event "Titled Tuesday Blitz March 07 Late 2023"]
[White "Rian, Kapriaga"]
[Black "Reprintsev, Alexander"]
[WhiteFideId "7103263"]
[BlackFideId "14100541"]
[WhiteElo "2371"]
[BlackElo "2229"]
[Result "0-1"]
[Round "07"]
[TimeControl "180+2"]
[Date "2023.03.07"]
[WhiteClock "0:00:03"]
[BlackClock "0:00:47"]

1. d4 {[%clk 0:02:06]}  d5 {[%clk 0:02:59]} 2. Bf4 {[%clk 0:02:04]}  Nf6 {[%clk 0:02:58]} 3. e3 {[%clk 0:02:05]}  c5 {[%clk 0:02:58]} 4. c3 {[%clk 0:02:03]}  Qb6 {[%clk 0:02:57]} 5. Qb3 {[%clk 0:02:02]}  c4 {[%clk 0:02:56]} 6. Qxb6 {[%clk 0:01:59]}  axb6 {[%clk 0:02:56]} 7. Nd2 {[%clk 0:01:59]}  b5 {[%clk 0:02:53]} 8. a3 {[%clk 0:01:58]}  Nc6 {[%clk 0:02:50]} 9. Ngf3 {[%clk 0:01:53]}  b4 {[%clk 0:02:47]} 10. cxb4 {[%clk 0:01:38]}  Nxb4 {[%clk 0:02:47]} 11. Rc1 {[%clk 0:01:36]}  Nc6 {[%clk 0:02:42]} 12. Be2 {[%clk 0:01:35]}  Bf5 {[%clk 0:02:36]} 13. O-O {[%clk 0:01:34]}  e6 {[%clk 0:02:36]} 14. Nh4 {[%clk 0:01:33]}  Bg4 {[%clk 0:02:31]} 15. f3 {[%clk 0:01:29]}  Bh5 {[%clk 0:02:31]} 16. g4 {[%clk 0:01:29]}  Bg6 {[%clk 0:02:31]} 17. Nxg6 {[%clk 0:01:29]}  hxg6 {[%clk 0:02:31]} 18. Bg3 {[%clk 0:01:07]}  Kd7 {[%clk 0:02:30]} 19. Rfd1 {[%clk 0:01:00]}  Bd6 {[%clk 0:02:29]} 20. Bxd6 {[%clk 0:00:52]}  Kxd6 {[%clk 0:02:29]} 21. Bf1 {[%clk 0:00:49]}  b5 {[%clk 0:02:22]} 22. e4 {[%clk 0:00:47]}  Nd7 {[%clk 0:02:18]} 23. b3 {[%clk 0:00:44]}  f6 {[%clk 0:02:15]} 24. a4 {[%clk 0:00:42]}  Nxd4 {[%clk 0:01:58]} 25. Nxc4+ {[%clk 0:00:40]}  bxc4 {[%clk 0:01:56]} 26. Rxd4 {[%clk 0:00:37]}  cxb3 {[%clk 0:01:55]} 27. exd5 {[%clk 0:00:37]}  exd5 {[%clk 0:01:52]} 28. Bc4 {[%clk 0:00:37]}  Ra5 {[%clk 0:01:38]} 29. Bxb3 {[%clk 0:00:35]}  Ne5 {[%clk 0:01:38]} 30. Kg2 {[%clk 0:00:32]}  Rb8 {[%clk 0:01:36]} 31. Bd1 {[%clk 0:00:27]}  g5 {[%clk 0:01:35]} 32. Be2 {[%clk 0:00:22]}  Rb2 {[%clk 0:01:33]} 33. Kf1 {[%clk 0:00:19]}  Ra2 {[%clk 0:01:31]} 34. Bb5 {[%clk 0:00:15]}  Nxf3 {[%clk 0:01:31]} 35. Rd3 {[%clk 0:00:12]}  Nxh2+ {[%clk 0:01:29]} 36. Kg1 {[%clk 0:00:11]}  Nxg4 {[%clk 0:01:29]} 37. Rcd1 {[%clk 0:00:11]}  Ne5 {[%clk 0:01:06]} 38. Rxd5+ {[%clk 0:00:11]}  Ke7 {[%clk 0:01:06]} 39. Rc5 {[%clk 0:00:10]}  R2xa4 {[%clk 0:00:58]} 40. Rc7+ {[%clk 0:00:08]}  Ke6 {[%clk 0:00:57]} 41. Bxa4 {[%clk 0:00:07]}  Rxa4 {[%clk 0:00:58]} 42. Rxg7 {[%clk 0:00:08]}  Ra2 {[%clk 0:00:56]} 43. Re1 {[%clk 0:00:07]}  Kf5 {[%clk 0:00:56]} 44. Rf1+ {[%clk 0:00:07]}  Ke6 {[%clk 0:00:53]} 45. Rg8 {[%clk 0:00:07]}  g4 {[%clk 0:00:51]} 46. Rf8 {[%clk 0:00:06]}  Nf3+ {[%clk 0:00:50]} 47. Rxf3 {[%clk 0:00:07]}  gxf3 {[%clk 0:00:50]} 48. Rb8 {[%clk 0:00:06]}  Kf5 {[%clk 0:00:50]} 49. Rb4 {[%clk 0:00:06]}  Kg5 {[%clk 0:00:49]} 50. Kf1 {[%clk 0:00:06]}  f5 {[%clk 0:00:50]} 51. Rc4 {[%clk 0:00:06]}  Rg2 {[%clk 0:00:49]} 52. Rb4 {[%clk 0:00:06]}  Re2 {[%clk 0:00:48]} 53. Rc4 {[%clk 0:00:05]}  Re4 {[%clk 0:00:48]} 54. Rc8 {[%clk 0:00:05]}  Kf4 {[%clk 0:00:48]} 55. Kf2 {[%clk 0:00:04]}  Re2+ {[%clk 0:00:48]} 56. Kf1 {[%clk 0:00:04]}  Ra2 {[%clk 0:00:48]} 57. Rc4+ {[%clk 0:00:03]}  Kg3 {[%clk 0:00:47]} 58. Rc8 {[%clk 0:00:03]}  Ra1+ {[%clk 0:00:47]} 0-1


[Site "https://www.chess.com"]

[Event "Titled Tuesday Blitz March 07 Late 2023"]
[White "Crispin Ferreras, Darvi Abraham"]
[Black "Sokac, Marko"]
[WhiteFideId "6402771"]
[BlackFideId "14531356"]
[WhiteElo "2106"]
[BlackElo "2355"]
[Result "0-1"]
[Round "07"]
[TimeControl "180+2"]
[Date "2023.03.07"]
[WhiteClock "0:00:12"]
[BlackClock "0:00:08"]

1. e4 {[%clk 0:03:00]}  d6 {[%clk 0:03:00]} 2. d4 {[%clk 0:03:00]}  Nf6 {[%clk 0:03:00]} 3. Nc3 {[%clk 0:03:00]}  c6 {[%clk 0:03:01]} 4. Nge2 {[%clk 0:02:59]}  e5 {[%clk 0:03:00]} 5. g3 {[%clk 0:02:59]}  Be7 {[%clk 0:03:00]} 6. Bg2 {[%clk 0:02:59]}  b5 {[%clk 0:03:00]} 7. a3 {[%clk 0:02:59]}  Bb7 {[%clk 0:03:00]} 8. O-O {[%clk 0:02:59]}  a5 {[%clk 0:03:00]} 9. d5 {[%clk 0:02:46]}  cxd5 {[%clk 0:02:57]} 10. exd5 {[%clk 0:02:38]}  b4 {[%clk 0:02:52]} 11. axb4 {[%clk 0:02:37]}  axb4 {[%clk 0:02:53]} 12. Rxa8 {[%clk 0:02:37]}  Bxa8 {[%clk 0:02:54]} 13. Nb1 {[%clk 0:02:32]}  Nbd7 {[%clk 0:02:53]} 14. c4 {[%clk 0:02:32]}  bxc3 {[%clk 0:02:51]} 15. Nbxc3 {[%clk 0:02:32]}  O-O {[%clk 0:02:48]} 16. h3 {[%clk 0:02:31]}  Nb6 {[%clk 0:02:27]} 17. Kh2 {[%clk 0:02:29]}  Qc7 {[%clk 0:02:14]} 18. f4 {[%clk 0:02:29]}  Rd8 {[%clk 0:01:52]} 19. g4 {[%clk 0:02:08]}  Qc4 {[%clk 0:01:47]} 20. g5 {[%clk 0:02:08]}  Nfxd5 {[%clk 0:01:41]} 21. fxe5 {[%clk 0:01:58]}  dxe5 {[%clk 0:01:39]} 22. Qc2 {[%clk 0:01:36]}  Nb4 {[%clk 0:01:29]} 23. Qf5 {[%clk 0:01:35]}  Bxg2 {[%clk 0:01:29]} 24. Kxg2 {[%clk 0:01:35]}  Nd3 {[%clk 0:01:06]} 25. Be3 {[%clk 0:01:34]}  Nd7 {[%clk 0:00:47]} 26. b3 {[%clk 0:01:30]}  Qc6+ {[%clk 0:00:27]} 27. Kh2 {[%clk 0:01:26]}  Qg6 {[%clk 0:00:28]} 28. Nd5 {[%clk 0:01:21]}  Bf8 {[%clk 0:00:22]} 29. Ng3 {[%clk 0:01:11]}  N7c5 {[%clk 0:00:21]} 30. Bxc5 {[%clk 0:00:55]}  Bxc5 {[%clk 0:00:15]} 31. b4 {[%clk 0:00:50]}  Bf8 {[%clk 0:00:14]} 32. Qxg6 {[%clk 0:00:45]}  hxg6 {[%clk 0:00:14]} 33. Ne3 {[%clk 0:00:41]}  Nxb4 {[%clk 0:00:14]} 34. Rd1 {[%clk 0:00:39]}  Rxd1 {[%clk 0:00:14]} 35. Nxd1 {[%clk 0:00:40]}  f5 {[%clk 0:00:13]} 36. gxf6 {[%clk 0:00:39]}  gxf6 {[%clk 0:00:14]} 37. Kg2 {[%clk 0:00:39]}  Kf7 {[%clk 0:00:14]} 38. Kf3 {[%clk 0:00:39]}  Ke6 {[%clk 0:00:15]} 39. Ne4 {[%clk 0:00:40]}  Nd5 {[%clk 0:00:14]} 40. h4 {[%clk 0:00:39]}  Be7 {[%clk 0:00:14]} 41. Nb2 {[%clk 0:00:36]}  f5 {[%clk 0:00:14]} 42. Ng5+ {[%clk 0:00:35]}  Bxg5 {[%clk 0:00:15]} 43. hxg5 {[%clk 0:00:36]}  e4+ {[%clk 0:00:15]} 44. Ke2 {[%clk 0:00:35]}  f4 {[%clk 0:00:15]} 45. Nc4 {[%clk 0:00:36]}  Kf5 {[%clk 0:00:14]} 46. Nd6+ {[%clk 0:00:35]}  Kxg5 {[%clk 0:00:14]} 47. Nxe4+ {[%clk 0:00:35]}  Kf5 {[%clk 0:00:13]} 48. Kf3 {[%clk 0:00:35]}  g5 {[%clk 0:00:08]} 49. Nd6+ {[%clk 0:00:35]}  Ke6 {[%clk 0:00:08]} 50. Ne4 {[%clk 0:00:35]}  Kf5 {[%clk 0:00:07]} 51. Nd6+ {[%clk 0:00:35]}  Kg6 {[%clk 0:00:07]} 52. Kg4 {[%clk 0:00:32]}  Nf6+ {[%clk 0:00:08]} 53. Kf3 {[%clk 0:00:31]}  Kh5 {[%clk 0:00:08]} 54. Nf5 {[%clk 0:00:30]}  Nd5 {[%clk 0:00:07]} 55. Ng7+ {[%clk 0:00:11]}  Kg6 {[%clk 0:00:07]} 56. Nf5 {[%clk 0:00:12]}  Kxf5 {[%clk 0:00:08]} 0-1


[Site "https://www.chess.com"]

[Event "Titled Tuesday Blitz March 07 Late 2023"]
[White "Ricaurte Lopez, Juan Carlos"]
[Black "Poeta, Caio Medeiros"]
[WhiteFideId "3600327"]
[BlackFideId "2142660"]
[WhiteElo "2209"]
[BlackElo "2191"]
[Result "0-1"]
[Round "07"]
[TimeControl "180+2"]
[Date "2023.03.07"]
[WhiteClock "0:01:50"]
[BlackClock "0:02:10"]

1. e4 {[%clk 0:02:57]}  c6 {[%clk 0:02:59]} 2. d4 {[%clk 0:02:57]}  d5 {[%clk 0:03:00]} 3. exd5 {[%clk 0:02:57]}  cxd5 {[%clk 0:03:00]} 4. c4 {[%clk 0:02:57]}  Nf6 {[%clk 0:03:01]} 5. Nc3 {[%clk 0:02:57]}  g6 {[%clk 0:03:01]} 6. Bg5 {[%clk 0:02:57]}  Be6 {[%clk 0:03:00]} 7. c5 {[%clk 0:02:51]}  Bg7 {[%clk 0:03:00]} 8. Nf3 {[%clk 0:02:50]}  O-O {[%clk 0:03:00]} 9. h3 {[%clk 0:02:48]}  Nc6 {[%clk 0:03:00]} 10. Bb5 {[%clk 0:02:45]}  a6 {[%clk 0:02:53]} 11. Bxc6 {[%clk 0:02:44]}  bxc6 {[%clk 0:02:53]} 12. O-O {[%clk 0:02:43]}  Ne4 {[%clk 0:02:49]} 13. Bf4 {[%clk 0:02:40]}  Qd7 {[%clk 0:02:38]} 14. Re1 {[%clk 0:02:35]}  Nxc3 {[%clk 0:02:30]} 15. bxc3 {[%clk 0:02:34]}  Rfe8 {[%clk 0:02:28]} 16. Ne5 {[%clk 0:02:29]}  Qc8 {[%clk 0:02:24]} 17. Qa4 {[%clk 0:02:25]}  Bd7 {[%clk 0:02:22]} 18. Re3 {[%clk 0:02:20]}  f6 {[%clk 0:02:22]} 19. Nxd7 {[%clk 0:02:17]}  Qxd7 {[%clk 0:02:23]} 20. Rae1 {[%clk 0:02:16]}  e6 {[%clk 0:02:23]} 21. Bd6 {[%clk 0:02:13]}  Kf7 {[%clk 0:02:22]} 22. c4 {[%clk 0:02:07]}  Bf8 {[%clk 0:02:21]} 23. cxd5 {[%clk 0:01:59]}  exd5 {[%clk 0:02:14]} 24. Rxe8 {[%clk 0:01:50]}  Rxe8 {[%clk 0:02:13]} 25. Re2 {[%clk 0:01:50]}  Rxe2 {[%clk 0:02:10]} 0-1


[Site "https://www.chess.com"]

[Event "Titled Tuesday Blitz March 07 Late 2023"]
[White "Karttunen, Mika"]
[Black "Yeritsyan, Hayk"]
[WhiteFideId "502081"]
[BlackFideId "13307320"]
[WhiteElo "2396"]
[BlackElo "2444"]
[Result "0-1"]
[Round "07"]
[TimeControl "180+2"]
[Date "2023.03.07"]
[WhiteClock "0:00:02"]
[BlackClock "0:00:11"]

1. c4 {[%clk 0:03:00]}  c6 {[%clk 0:02:18]} 2. Nf3 {[%clk 0:02:53]}  d5 {[%clk 0:02:19]} 3. e3 {[%clk 0:02:53]}  Nf6 {[%clk 0:02:19]} 4. b3 {[%clk 0:02:50]}  Bf5 {[%clk 0:02:18]} 5. Bb2 {[%clk 0:02:48]}  e6 {[%clk 0:02:19]} 6. Nc3 {[%clk 0:02:47]}  h6 {[%clk 0:02:19]} 7. Ne5 {[%clk 0:02:30]}  Nbd7 {[%clk 0:02:13]} 8. g4 {[%clk 0:02:10]}  Nxe5 {[%clk 0:01:47]} 9. gxf5 {[%clk 0:02:09]}  dxc4 {[%clk 0:01:41]} 10. fxe6 {[%clk 0:01:56]}  Nd3+ {[%clk 0:01:38]} 11. Bxd3 {[%clk 0:01:55]}  cxd3 {[%clk 0:01:38]} 12. exf7+ {[%clk 0:01:49]}  Kxf7 {[%clk 0:01:39]} 13. Qf3 {[%clk 0:01:48]}  Be7 {[%clk 0:01:32]} 14. Rg1 {[%clk 0:01:44]}  Rf8 {[%clk 0:01:31]} 15. Qg2 {[%clk 0:01:36]}  g5 {[%clk 0:01:17]} 16. O-O-O {[%clk 0:01:19]}  Nd5 {[%clk 0:01:04]} 17. Ne4 {[%clk 0:01:10]}  Qa5 {[%clk 0:00:58]} 18. Qf3+ {[%clk 0:00:47]}  Kg6 {[%clk 0:00:48]} 19. Qg4 {[%clk 0:00:38]}  Qxa2 {[%clk 0:00:39]} 20. Qe6+ {[%clk 0:00:37]}  Rf6 {[%clk 0:00:19]} 21. Qe5 {[%clk 0:00:20]}  Qxb3 {[%clk 0:00:18]} 22. Rxg5+ {[%clk 0:00:17]}  hxg5 {[%clk 0:00:17]} 23. Qxg5+ {[%clk 0:00:16]}  Kf7 {[%clk 0:00:17]} 24. Qh5+ {[%clk 0:00:17]}  Ke6 {[%clk 0:00:17]} 25. Qe5+ {[%clk 0:00:14]}  Kf7 {[%clk 0:00:16]} 26. Qh5+ {[%clk 0:00:09]}  Rg6 {[%clk 0:00:14]} 27. Qf5+ {[%clk 0:00:07]}  Bf6 {[%clk 0:00:13]} 28. Qd7+ {[%clk 0:00:05]}  Ne7 {[%clk 0:00:14]} 29. Nd6+ {[%clk 0:00:05]}  Kg7 {[%clk 0:00:12]} 30. Qxe7+ {[%clk 0:00:03]}  Kh6 {[%clk 0:00:12]} 31. Nf7+ {[%clk 0:00:02]}  Kh5 {[%clk 0:00:11]} 32. Qc5+ {[%clk 0:00:02]}  Rg5 {[%clk 0:00:11]} 0-1


[Site "https://www.chess.com"]

[Event "Titled Tuesday Blitz March 07 Late 2023"]
[White "Gatterer, Florian"]
[Black "Klose, Eli"]
[WhiteFideId "811688"]
[BlackFideId "16242955"]
[WhiteElo "2221"]
[BlackElo "2529"]
[Result "1/2-1/2"]
[Round "07"]
[TimeControl "180+2"]
[Date "2023.03.07"]
[WhiteClock "0:00:19"]
[BlackClock "0:00:08"]

1. b3 {[%clk 0:03:00]}  e5 {[%clk 0:02:58]} 2. Bb2 {[%clk 0:02:56]}  Nc6 {[%clk 0:02:59]} 3. e3 {[%clk 0:02:55]}  Nf6 {[%clk 0:02:58]} 4. Nf3 {[%clk 0:02:54]}  d6 {[%clk 0:02:55]} 5. d4 {[%clk 0:02:53]}  exd4 {[%clk 0:02:53]} 6. Nxd4 {[%clk 0:02:50]}  Nxd4 {[%clk 0:02:51]} 7. Qxd4 {[%clk 0:02:48]}  Be7 {[%clk 0:02:51]} 8. Nc3 {[%clk 0:02:48]}  Be6 {[%clk 0:02:47]} 9. O-O-O {[%clk 0:02:44]}  a6 {[%clk 0:02:46]} 10. Be2 {[%clk 0:02:36]}  O-O {[%clk 0:02:45]} 11. g4 {[%clk 0:02:34]}  c5 {[%clk 0:02:42]} 12. Qf4 {[%clk 0:02:26]}  b5 {[%clk 0:02:39]} 13. Bf3 {[%clk 0:02:00]}  Rc8 {[%clk 0:02:35]} 14. g5 {[%clk 0:01:51]}  Nd7 {[%clk 0:02:19]} 15. h4 {[%clk 0:01:47]}  Ne5 {[%clk 0:02:14]} 16. Nd5 {[%clk 0:01:22]}  Nxf3 {[%clk 0:02:06]} 17. Qxf3 {[%clk 0:01:12]}  Re8 {[%clk 0:02:05]} 18. Nxe7+ {[%clk 0:01:02]}  Qxe7 {[%clk 0:02:03]} 19. h5 {[%clk 0:00:58]}  c4 {[%clk 0:01:51]} 20. Kb1 {[%clk 0:00:45]}  c3 {[%clk 0:01:47]} 21. Ba3 {[%clk 0:00:45]}  Qxg5 {[%clk 0:01:28]} 22. Rhg1 {[%clk 0:00:29]}  Qf5 {[%clk 0:01:28]} 23. Qxf5 {[%clk 0:00:21]}  Bxf5 {[%clk 0:01:27]} 24. Bxd6 {[%clk 0:00:20]}  f6 {[%clk 0:01:22]} 25. h6 {[%clk 0:00:18]}  g5 {[%clk 0:01:17]} 26. Bb4 {[%clk 0:00:17]}  Kf7 {[%clk 0:01:15]} 27. Rd4 {[%clk 0:00:14]}  Rc6 {[%clk 0:01:07]} 28. Rgd1 {[%clk 0:00:14]}  Kg6 {[%clk 0:01:06]} 29. Rd6 {[%clk 0:00:14]}  Rec8 {[%clk 0:01:06]} 30. Rxc6 {[%clk 0:00:13]}  Rxc6 {[%clk 0:01:07]} 31. Rd6 {[%clk 0:00:13]}  Rxd6 {[%clk 0:00:55]} 32. Bxd6 {[%clk 0:00:13]}  Kxh6 {[%clk 0:00:56]} 33. Bb4 {[%clk 0:00:13]}  Kh5 {[%clk 0:00:56]} 34. Bxc3 {[%clk 0:00:13]}  Kg4 {[%clk 0:00:57]} 35. Bxf6 {[%clk 0:00:13]}  h5 {[%clk 0:00:55]} 36. f3+ {[%clk 0:00:11]}  Kxf3 {[%clk 0:00:37]} 37. Bxg5 {[%clk 0:00:11]}  Kg4 {[%clk 0:00:37]} 38. Bf6 {[%clk 0:00:09]}  h4 {[%clk 0:00:38]} 39. Kb2 {[%clk 0:00:08]}  h3 {[%clk 0:00:39]} 40. Be5 {[%clk 0:00:08]}  Kf3 {[%clk 0:00:39]} 41. Bf4 {[%clk 0:00:07]}  Kg2 {[%clk 0:00:36]} 42. c3 {[%clk 0:00:07]}  h2 {[%clk 0:00:33]} 43. Bxh2 {[%clk 0:00:07]}  Kxh2 {[%clk 0:00:34]} 44. a4 {[%clk 0:00:06]}  bxa4 {[%clk 0:00:14]} 45. bxa4 {[%clk 0:00:06]}  Kg3 {[%clk 0:00:14]} 46. e4 {[%clk 0:00:06]}  Bxe4 {[%clk 0:00:13]} 47. c4 {[%clk 0:00:06]}  Kf4 {[%clk 0:00:13]} 48. c5 {[%clk 0:00:06]}  Ke5 {[%clk 0:00:14]} 49. a5 {[%clk 0:00:07]}  Kd5 {[%clk 0:00:13]} 50. c6 {[%clk 0:00:07]}  Kxc6 {[%clk 0:00:13]} 51. Ka1 {[%clk 0:00:08]}  Kb5 {[%clk 0:00:13]} 52. Kb2 {[%clk 0:00:09]}  Ba8 {[%clk 0:00:13]} 53. Ka1 {[%clk 0:00:10]}  Kxa5 {[%clk 0:00:14]} 54. Kb2 {[%clk 0:00:11]}  Kb6 {[%clk 0:00:15]} 55. Ka1 {[%clk 0:00:11]}  Kc7 {[%clk 0:00:16]} 56. Kb2 {[%clk 0:00:12]}  Kc6 {[%clk 0:00:16]} 57. Ka1 {[%clk 0:00:13]}  Kc5 {[%clk 0:00:16]} 58. Kb2 {[%clk 0:00:14]}  Kc4 {[%clk 0:00:17]} 59. Ka1 {[%clk 0:00:14]}  Kc3 {[%clk 0:00:17]} 60. Ka2 {[%clk 0:00:14]}  Kc2 {[%clk 0:00:16]} 61. Ka1 {[%clk 0:00:14]}  Kb3 {[%clk 0:00:13]} 62. Kb1 {[%clk 0:00:15]}  Ka3 {[%clk 0:00:13]} 63. Ka1 {[%clk 0:00:15]}  Bb7 {[%clk 0:00:14]} 64. Kb1 {[%clk 0:00:15]}  Be4+ {[%clk 0:00:15]} 65. Ka1 {[%clk 0:00:16]}  Bc6 {[%clk 0:00:16]} 66. Kb1 {[%clk 0:00:16]}  Kb4 {[%clk 0:00:15]} 67. Kb2 {[%clk 0:00:16]}  Kc4 {[%clk 0:00:15]} 68. Ka1 {[%clk 0:00:16]}  Kd4 {[%clk 0:00:16]} 69. Ka2 {[%clk 0:00:17]}  Ke4 {[%clk 0:00:17]} 70. Ka1 {[%clk 0:00:17]}  Ke3 {[%clk 0:00:18]} 71. Ka2 {[%clk 0:00:17]}  Ke2 {[%clk 0:00:19]} 72. Ka1 {[%clk 0:00:18]}  Kd1 {[%clk 0:00:20]} 73. Ka2 {[%clk 0:00:18]}  a5 {[%clk 0:00:15]} 74. Ka1 {[%clk 0:00:19]}  Be4 {[%clk 0:00:11]} 75. Ka2 {[%clk 0:00:19]}  Kc1 {[%clk 0:00:11]} 76. Ka1 {[%clk 0:00:19]}  Bd5 {[%clk 0:00:08]} 1/2-1/2


[Site "https://www.chess.com"]

[Event "Titled Tuesday Blitz March 07 Late 2023"]
[White "Jovic, Stanoje"]
[Black "Graif, William"]
[WhiteFideId "905020"]
[BlackFideId "2609835"]
[WhiteElo "2236"]
[BlackElo "2205"]
[Result "1-0"]
[Round "07"]
[TimeControl "180+2"]
[Date "2023.03.07"]
[WhiteClock "0:01:51"]
[BlackClock "0:00:33"]

1. c4 {[%clk 0:03:00]}  a6 {[%clk 0:02:54]} 2. e4 {[%clk 0:02:59]}  e5 {[%clk 0:02:47]} 3. Nf3 {[%clk 0:02:57]}  Nc6 {[%clk 0:02:46]} 4. Nc3 {[%clk 0:02:52]}  Bc5 {[%clk 0:02:45]} 5. Nxe5 {[%clk 0:02:50]}  Nf6 {[%clk 0:02:36]} 6. Nf3 {[%clk 0:02:45]}  Qe7 {[%clk 0:02:24]} 7. d4 {[%clk 0:02:37]}  Nxe4 {[%clk 0:02:15]} 8. Be3 {[%clk 0:02:33]}  Bb4 {[%clk 0:02:12]} 9. Rc1 {[%clk 0:02:26]}  d6 {[%clk 0:02:02]} 10. Bd3 {[%clk 0:02:24]}  Bf5 {[%clk 0:01:54]} 11. O-O {[%clk 0:02:21]}  O-O {[%clk 0:01:42]} 12. Nd5 {[%clk 0:02:19]}  Qd7 {[%clk 0:01:36]} 13. a3 {[%clk 0:02:15]}  Ba5 {[%clk 0:01:33]} 14. b4 {[%clk 0:02:14]}  Bb6 {[%clk 0:01:32]} 15. Qc2 {[%clk 0:02:09]}  Rae8 {[%clk 0:01:28]} 16. Nxb6 {[%clk 0:01:56]}  cxb6 {[%clk 0:01:28]} 17. Nh4 {[%clk 0:01:56]}  d5 {[%clk 0:00:37]} 18. cxd5 {[%clk 0:01:52]}  Qxd5 {[%clk 0:00:35]} 19. Nxf5 {[%clk 0:01:51]}  Qxf5 {[%clk 0:00:33]} 20. f3 {[%clk 0:01:51]} 1-0


[Site "https://www.chess.com"]